fUST/lending_fUST_20250910
["ID","MTS","AMOUNT","RATE_DAILY","PERIOD"]
[384592679,1757466651439,-415.43,0.00015342,2]
[384592680,1757466651448,-480.0,0.00015342,2]
[384592681,1757466651458,-151.0,0.00015342,2]
[384592682,1757466651467,-410.8,0.00015342,2]
[384592683,1757466651477,-480.0,0.00015342,2]
[384592684,1757466651487,-158.96928358,0.00015342,2]
[384592685,1757466651498,-480.0,0.00015342,2]
[384592686,1757466651509,-480.0,0.00015342,2]
[384592687,1757466651522,-480.0,0.00015342,2]
[384592688,1757466651531,-480.0,0.00015342,2]
[384592689,1757466651541,-480.0,0.00015342,2]
[384592690,1757466651550,-4401.35,0.00015342,2]
[384592691,1757466651561,-480.0,0.00015342,2]
[384592692,1757466651571,-480.0,0.00015342,2]
[384592693,1757466651580,-480.0,0.00015342,2]
[384592694,1757466651589,-480.0,0.00015342,2]
[384592695,1757466651601,-480.0,0.00015342,2]
[384592696,1757466651610,-480.0,0.00015342,2]
[384592697,1757466651621,-537.92,0.00015342,2]
[384592698,1757466651630,-480.0,0.00015342,2]
[384592699,1757466651640,-665.27,0.00015342,2]
[384592700,1757466651651,-517.31,0.00015342,2]
[384592701,1757466651661,-480.0,0.00015342,2]
[384592702,1757466651671,-480.0,0.00015342,2]
[384592703,1757466651681,-480.0,0.00015342,2]
[384592704,1757466651690,-201.51,0.00015342,2]
[384592705,1757466651700,-480.0,0.00015342,2]
[384592706,1757466651710,-480.0,0.00015342,2]
[384592707,1757466651720,-480.0,0.00015342,2]
[384592708,1757466651730,-480.0,0.00015342,2]
[384592709,1757466651739,-480.0,0.00015342,2]
[384592710,1757466651749,-480.0,0.00015342,2]
[384592711,1757466651758,-480.0,0.00015342,2]
[384592712,1757466651768,-586.08,0.00015342,2]
[384592713,1757466651777,-480.0,0.00015342,2]
[384592714,1757466651787,-378.03733248,0.00015342,2]
[384592715,1757466651797,-678.09,0.00015342,2]
[384592716,1757466651806,-480.0,0.00015342,2]
[384592717,1757466651816,-480.0,0.00015342,2]
[384592718,1757466651826,-1202.17,0.00015342,2]
[384592719,1757466651836,-480.0,0.00015342,2]
[384592720,1757466651845,-480.0,0.00015342,2]
[384592721,1757466651855,-480.0,0.00015342,2]
[384592722,1757466651864,-480.0,0.00015342,2]
[384592723,1757466651874,-436.23,0.00015342,2]
[384592724,1757466651883,-480.0,0.00015342,2]
[384592725,1757466651893,-480.0,0.00015342,2]
[384592726,1757466651904,-221.31,0.00015342,2]
[384592727,1757466651914,-480.0,0.00015342,2]
[384592728,1757466651924,-480.0,0.00015342,2]
[384592729,1757466651934,-652.14,0.00015342,2]
[384592730,1757466651943,-480.0,0.00015342,2]
[384592731,1757466651953,-593.39,0.00015342,2]
[384592732,1757466651962,-480.0,0.00015342,2]
[384592733,1757466651972,-480.0,0.00015342,2]
[384592734,1757466651981,-532.05,0.00015342,2]
[384592735,1757466651990,-503.29,0.00015342,2]
[384592736,1757466652000,-480.0,0.00015342,2]
[384592737,1757466652010,-480.0,0.00015342,2]
[384592738,1757466652019,-720.0,0.00015368,2]
[384592739,1757466652029,-417.15472785,0.00015519,2]
[384592740,1757466652038,-846.80158213,0.00015519,2]
[384592741,1757466652048,-217.65034598,0.00015519,2]
[384592742,1757466652057,-233.05759179,0.00015519,2]
[384592743,1757466652066,-160.0,0.00015519,2]
[384592744,1757466652075,-530.79566296,0.00015519,2]
[384592745,1757466652085,-203.28455737,0.00015519,2]
[384592746,1757466652095,-160.0,0.00015519,2]
[384592747,1757466652104,-160.0,0.0001552,2]
[384592748,1757466652114,-160.0,0.0001552,2]
[384592749,1757466652123,-160.0,0.0001552,2]
[384592750,1757466652131,-160.0,0.00015523,2]
[384592751,1757466652141,-220.01406,0.00015615,2]
[384592752,1757466652150,-151.0,0.00015615,2]
[384592753,1757466652160,-220.01406,0.00015615,2]
[384592754,1757466652169,-220.01406,0.00015615,2]
[384592755,1757466652178,-220.01406,0.00015615,2]
[384592756,1757466652188,-151.0,0.00015615,2]
[384592757,1757466652196,-151.0,0.00015615,2]
[384592758,1757466652206,-151.0,0.00015615,2]
[384592759,1757466652215,-480.0,0.00015616,2]
[384592760,1757466652224,-480.0,0.00015616,2]
[384592761,1757466652233,-480.0,0.00015616,2]
[384592762,1757466652242,-480.0,0.00015616,2]
[384592763,1757466652251,-480.0,0.00015616,2]
[384592764,1757466652261,-480.0,0.00015616,2]
[384592765,1757466652270,-480.0,0.00015616,2]
[384592766,1757466652279,-310.35,0.00015616,2]
[384592767,1757466652288,-480.0,0.00015616,2]
[384592768,1757466652297,-480.0,0.00015616,2]
[384592769,1757466652307,-480.0,0.00015616,2]
[384592770,1757466652316,-480.0,0.00015616,2]
[384592771,1757466652326,-480.0,0.00015616,2]
[384592772,1757466652335,-458.07,0.00015616,2]
[384592773,1757466652344,-480.0,0.00015616,2]
[384592774,1757466652353,-480.0,0.00015616,2]
[384592775,1757466652363,-480.0,0.00015616,2]
[384592776,1757466652372,-480.0,0.00015616,2]
[384592777,1757466652381,-4401.35,0.00015616,2]
[384592778,1757466652390,-153.06,0.00015616,2]
[384592779,1757466652400,-480.0,0.00015616,2]
[384592780,1757466652409,-480.0,0.00015616,2]
[384592781,1757466652418,-359.71,0.00015616,2]
[384592782,1757466652428,-480.0,0.00015616,2]
[384592783,1757466652437,-480.0,0.00015616,2]
[384592784,1757466652447,-537.92,0.00015616,2]
[384592785,1757466652456,-480.0,0.00015616,2]
[384592786,1757466652465,-665.27,0.00015616,2]
[384592787,1757466652475,-517.31,0.00015616,2]
[384592788,1757466652484,-471.26,0.00015616,2]
[384592789,1757466652493,-480.0,0.00015616,2]
[384592790,1757466652502,-172.6,0.00015616,2]
[384592791,1757466652512,-572.64,0.00015616,2]
[384592792,1757466652524,-480.0,0.00015616,2]
[384592793,1757466652534,-480.0,0.00015616,2]
[384592794,1757466652543,-240.39,0.00015616,2]
[384592795,1757466652554,-480.0,0.00015616,2]
[384592796,1757466652563,-480.0,0.00015616,2]
[384592797,1757466652572,-480.0,0.00015616,2]
[384592798,1757466652581,-480.0,0.00015616,2]
[384592799,1757466652591,-678.09,0.00015616,2]
[384592800,1757466652601,-480.0,0.00015616,2]
[384592801,1757466652611,-1202.17,0.00015616,2]
[384592802,1757466652621,-480.0,0.00015616,2]
[384592803,1757466652631,-480.0,0.00015616,2]
[384592804,1757466652640,-480.0,0.00015616,2]
[384592805,1757466652650,-480.0,0.00015616,2]
[384592806,1757466652661,-595.45,0.00015616,2]
[384592807,1757466652671,-480.0,0.00015616,2]
[384592808,1757466652680,-480.0,0.00015616,2]
[384592809,1757466652690,-480.0,0.00015616,2]
[384592810,1757466652699,-652.14,0.00015616,2]
[384592811,1757466652709,-497.19,0.00015616,2]
[384592812,1757466652718,-593.39,0.00015616,2]
[384592813,1757466652728,-480.0,0.00015616,2]
[384592814,1757466652738,-480.0,0.00015616,2]
[384592815,1757466652748,-532.05,0.00015616,2]
[384592816,1757466652758,-523.88,0.00015616,2]
[384592817,1757466652768,-530.84,0.00015616,2]
[384592818,1757466652778,-480.0,0.0001589,2]
[384592819,1757466652788,-529.04355495,0.0001589,2]
[384592820,1757466652798,-480.0,0.0001589,2]
[384592821,1757466652807,-480.0,0.0001589,2]
[384592822,1757466652817,-480.0,0.0001589,2]
[384592823,1757466652826,-480.0,0.0001589,2]
[384592824,1757466652836,-480.0,0.0001589,2]
[384592825,1757466652845,-399.5,0.0001589,2]
[384592826,1757466652854,-480.0,0.0001589,2]
[384592827,1757466652865,-480.0,0.0001589,2]
[384592828,1757466652875,-480.0,0.0001589,2]
[384592829,1757466652884,-480.0,0.0001589,2]
[384592830,1757466652895,-480.0,0.0001589,2]
[384592831,1757466652905,-405.04,0.0001589,2]
[384592832,1757466652915,-480.0,0.0001589,2]
[384592833,1757466652924,-480.0,0.0001589,2]
[384592834,1757466652934,-4401.35,0.0001589,2]
[384592835,1757466652944,-480.0,0.0001589,2]
[384592836,1757466652953,-480.0,0.0001589,2]
[384592837,1757466652963,-480.0,0.0001589,2]
[384592838,1757466652973,-480.0,0.0001589,2]
[384592839,1757466652983,-537.92,0.0001589,2]
[384592840,1757466652993,-480.0,0.0001589,2]
[384592841,1757466653002,-665.27,0.0001589,2]
[384592842,1757466653012,-517.31,0.0001589,2]
[384592843,1757466653022,-480.0,0.0001589,2]
[384592844,1757466653032,-480.0,0.0001589,2]
[384592845,1757466653042,-480.0,0.0001589,2]
[384592846,1757466653052,-480.0,0.0001589,2]
[384592847,1757466653061,-480.0,0.0001589,2]
[384592848,1757466653170,-591.57,0.0001589,2]
[384592849,1757466653181,-623.99,0.0001589,2]
[384592850,1757466653190,-678.09,0.0001589,2]
[384592851,1757466653200,-455.1,0.0001589,2]
[384592852,1757466653209,-1202.17,0.0001589,2]
[384592853,1757466653219,-263.72,0.0001589,2]
[384592854,1757466653228,-480.0,0.0001589,2]
[384592855,1757466653237,-480.0,0.0001589,2]
[384592856,1757466653246,-480.0,0.0001589,2]
[384592857,1757466653256,-480.0,0.0001589,2]
[384592858,1757466653266,-620.21,0.0001589,2]
[384592859,1757466653275,-480.0,0.0001589,2]
[384592860,1757466653284,-652.14,0.0001589,2]
[384592861,1757466653293,-593.39,0.0001589,2]
[384592862,1757466653302,-480.0,0.0001589,2]
[384592863,1757466653311,-480.0,0.0001589,2]
[384592864,1757466653320,-532.05,0.0001589,2]
[384592865,1757466653330,-260.0,0.00016071,2]
[384592866,1757466653339,-480.0,0.00016164,2]
[384592867,1757466653348,-389.82,0.00016164,2]
[384592868,1757466653357,-151.0,0.00016164,2]
[384592869,1757466653366,-151.0,0.00016164,2]
[384592870,1757466653375,-543.22,0.00016164,2]
[384592871,1757466653384,-151.0,0.00016164,2]
[384592872,1757466653393,-151.0,0.00016164,2]
[384592873,1757466653402,-301.209281,0.00016164,2]
[384592874,1757466653411,-480.0,0.00016164,2]
[384592875,1757466653420,-480.0,0.00016164,2]
[384592876,1757466653431,-362.3,0.00016164,2]
[384592877,1757466653441,-480.0,0.00016164,2]
[384592878,1757466653450,-480.0,0.00016164,2]
[384592879,1757466653459,-480.0,0.00016164,2]
[384592880,1757466653469,-266.75,0.00016164,2]
[384592881,1757466653479,-304.38,0.00016164,2]
[384592882,1757466653488,-480.0,0.00016164,2]
[384592883,1757466653497,-1996.68998529,0.00016164,2]
[384592884,1757466653587,-2404.66001471,0.00016164,2]
[384592885,1757466653596,-480.0,0.00016164,2]
[384592886,1757466653607,-480.0,0.00016164,2]
[384592887,1757466653616,-480.0,0.00016164,2]
[384592888,1757466653625,-537.92,0.00016164,2]
[384592889,1757466653634,-480.0,0.00016164,2]
[384592890,1757466653643,-665.27,0.00016164,2]
[384592891,1757466653652,-517.31,0.00016164,2]
[384592892,1757466653661,-480.0,0.00016164,2]
[384592893,1757466653670,-480.0,0.00016164,2]
[384592894,1757466653679,-247.88,0.00016164,2]
[384592895,1757466653688,-402.12,0.00016164,2]
[384592896,1757466653697,-480.0,0.00016164,2]
[384592897,1757466653706,-678.09,0.00016164,2]
[384592898,1757466653715,-1202.17,0.00016164,2]
[384592899,1757466653724,-358.13,0.00016164,2]
[384592900,1757466653733,-480.0,0.00016164,2]
[384592901,1757466653742,-480.0,0.00016164,2]
[384592902,1757466653751,-480.0,0.00016164,2]
[384592903,1757466653765,-480.0,0.00016164,2]
[384592904,1757466653774,-652.14,0.00016164,2]
[384592905,1757466653783,-593.39,0.00016164,2]
[384592906,1757466653792,-258.05,0.00016164,2]
[384592907,1757466653802,-480.0,0.00016164,2]
[384592908,1757466653811,-532.05,0.00016164,2]
[384592909,1757466653819,-480.0,0.00016438,2]
[384592910,1757466653829,-597.89331896,0.00016438,2]
[384592911,1757466653838,-480.0,0.00016438,2]
[384592912,1757466653847,-480.0,0.00016438,2]
[384592913,1757466653856,-480.0,0.00016438,2]
[384592914,1757466653865,-218.99,0.00016438,2]
[384592915,1757466653875,-480.0,0.00016438,2]
[384592916,1757466653884,-4401.35,0.00016438,2]
[384592917,1757466653897,-480.0,0.00016438,2]
[384592918,1757466653906,-480.0,0.00016438,2]
[384592919,1757466653916,-600.99,0.00016438,2]
[384592920,1757466653925,-537.92,0.00016438,2]
[384592921,1757466653934,-480.0,0.00016438,2]
[384592922,1757466653944,-665.27,0.00016438,2]
[384592923,1757466653953,-517.31,0.00016438,2]
[384592924,1757466653962,-480.0,0.00016438,2]
[384592925,1757466653971,-480.0,0.00016438,2]
[384592926,1757466653981,-480.0,0.00016438,2]
[384592927,1757466653990,-678.09,0.00016438,2]
[384592928,1757466654000,-1202.17,0.00016438,2]
[384592929,1757466654009,-480.0,0.00016438,2]
[384592930,1757466654019,-611.34,0.00016438,2]
[384592931,1757466654029,-480.0,0.00016438,2]
[384592932,1757466654038,-480.0,0.00016438,2]
[384592933,1757466654047,-652.14,0.00016438,2]
[384592934,1757466654057,-593.39,0.00016438,2]
[384592935,1757466654067,-480.0,0.00016438,2]
[384592936,1757466654076,-532.05,0.00016438,2]
[384592937,1757466654086,-587.0,0.00016449,2]
[384592938,1757466654095,-360.0,0.00016619,2]
[384592939,1757466654104,-480.0,0.00016712,2]
[384592940,1757466654113,-151.0,0.00016712,2]
[384592941,1757466654123,-480.0,0.00016712,2]
[384592942,1757466654131,-480.0,0.00016712,2]
[384592943,1757466654141,-197.44,0.00016712,2]
[384592944,1757466654150,-480.0,0.00016712,2]
[384592945,1757466654160,-4401.35,0.00016712,2]
[384592946,1757466654169,-480.0,0.00016712,2]
[384592947,1757466654179,-480.0,0.00016712,2]
[384592948,1757466654188,-537.92,0.00016712,2]
[384592949,1757466654197,-480.0,0.00016712,2]
[384592950,1757466654206,-665.27,0.00016712,2]
[384592951,1757466654215,-517.31,0.00016712,2]
[384592952,1757466654225,-480.0,0.00016712,2]
[384592953,1757466654234,-480.0,0.00016712,2]
[384592954,1757466654243,-480.0,0.00016712,2]
[384592955,1757466654253,-678.09,0.00016712,2]
[384592956,1757466654264,-1202.17,0.00016712,2]
[384592957,1757466654273,-480.0,0.00016712,2]
[384592958,1757466654283,-480.0,0.00016712,2]
[384592959,1757466654295,-480.0,0.00016712,2]
[384592960,1757466654306,-652.14,0.00016712,2]
[384592961,1757466654317,-593.39,0.00016712,2]
[384592962,1757466654328,-480.0,0.00016712,2]
[384592963,1757466654337,-532.05,0.00016712,2]
[384592964,1757466654347,-864.0,0.00016905,2]
[384592965,1757466654356,-480.0,0.00016986,2]
[384592966,1757466654366,-119.15719651,0.00016986,2]
[384592967,1757466654407,-360.84280349,0.00016986,2]
[384592968,1757466654416,-480.0,0.00016986,2]
[384592969,1757466654425,-480.0,0.00016986,2]
[384592970,1757466654434,-4401.35,0.00016986,2]
[384592971,1757466654443,-461.98,0.00016986,2]
[384592972,1757466654452,-236.12,0.00016986,2]
[384592973,1757466654461,-537.92,0.00016986,2]
[384592974,1757466654471,-480.0,0.00016986,2]
[384592975,1757466654479,-665.27,0.00016986,2]
[384592976,1757466654489,-517.31,0.00016986,2]
[384592977,1757466654499,-480.0,0.00016986,2]
[384592978,1757466654508,-480.0,0.00016986,2]
[384592979,1757466654519,-480.0,0.00016986,2]
[384592980,1757466654532,-678.09,0.00016986,2]
[384592981,1757466654542,-1202.17,0.00016986,2]
[384592982,1757466654551,-480.0,0.00016986,2]
[384592983,1757466654561,-186.03,0.00016986,2]
[384592984,1757466654571,-480.0,0.00016986,2]
[384592985,1757466654583,-652.14,0.00016986,2]
[384592986,1757466654595,-593.39,0.00016986,2]
[384592987,1757466654604,-480.0,0.00016986,2]
[384592988,1757466654613,-532.05,0.00016986,2]
[384592989,1757466654622,-178.659206,0.00017145,2]
[384592990,1757466654632,-157.713983,0.00017145,2]
[384592991,1757466654641,-460.0,0.00017167,2]
[384592992,1757466654651,-480.0,0.0001726,2]
[384592993,1757466654661,-480.0,0.0001726,2]
[384592994,1757466654670,-275.65,0.0001726,2]
[384592995,1757466654680,-480.0,0.0001726,2]
[384592996,1757466654689,-4401.35,0.0001726,2]
[384592997,1757466654698,-537.92,0.0001726,2]
[384592998,1757466654707,-480.0,0.0001726,2]
[384592999,1757466654716,-665.27,0.0001726,2]
[384593000,1757466654725,-517.31,0.0001726,2]
[384593001,1757466654735,-480.0,0.0001726,2]
[384593002,1757466654743,-480.0,0.0001726,2]
[384593003,1757466654753,-480.0,0.0001726,2]
[384593004,1757466654763,-678.09,0.0001726,2]
[384593005,1757466654772,-1202.17,0.0001726,2]
[384593006,1757466654781,-480.0,0.0001726,2]
[384593007,1757466654790,-480.0,0.0001726,2]
[384593008,1757466654799,-652.14,0.0001726,2]
[384593009,1757466654809,-593.39,0.0001726,2]
[384593010,1757466654818,-480.0,0.0001726,2]
[384593011,1757466654827,-532.05,0.0001726,2]
[384593012,1757466654836,-480.0,0.00017534,2]
[384593013,1757466654846,-480.0,0.00017534,2]
[384593014,1757466654855,-480.0,0.00017534,2]
[384593015,1757466654864,-4401.35,0.00017534,2]
[384593016,1757466654874,-537.92,0.00017534,2]
[384593017,1757466654884,-480.0,0.00017534,2]
[384593018,1757466654893,-665.27,0.00017534,2]
[384593019,1757466654903,-517.31,0.00017534,2]
[384593020,1757466654913,-480.0,0.00017534,2]
[384593021,1757466654922,-480.0,0.00017534,2]
[384593022,1757466654931,-233.62,0.00017534,2]
[384593023,1757466654940,-678.09,0.00017534,2]
[384593024,1757466654949,-1202.17,0.00017534,2]
[384593025,1757466654958,-480.0,0.00017534,2]
[384593026,1757466654968,-568.88,0.00017534,2]
[384593027,1757466654976,-151.0,0.00017534,2]
[384593028,1757466654985,-151.0,0.00017534,2]
[384593029,1757466654994,-151.0,0.00017534,2]
[384593030,1757466655003,-151.0,0.00017534,2]
[384593031,1757466655013,-151.0,0.00017534,2]
[384593032,1757466655023,-652.14,0.00017534,2]
[384593033,1757466655033,-593.39,0.00017534,2]
[384593034,1757466655042,-480.0,0.00017534,2]
[384593035,1757466655052,-151.0,0.00017534,2]
[384593036,1757466655061,-532.05,0.00017534,2]
[384593037,1757466655070,-480.0,0.00017808,2]
[384593038,1757466655080,-213.26,0.00017808,2]
[384593039,1757466655089,-480.0,0.00017808,2]
[384593040,1757466655098,-4401.35,0.00017808,2]
[384593041,1757466655107,-537.92,0.00017808,2]
[384593042,1757466655116,-480.0,0.00017808,2]
[384593043,1757466655125,-665.27,0.00017808,2]
[384593044,1757466655134,-517.31,0.00017808,2]
[384593045,1757466655142,-152.21,0.00017808,2]
[384593046,1757466655152,-480.0,0.00017808,2]
[384593047,1757466655161,-151.0,0.00017808,2]
[384593048,1757466655170,-151.0,0.00017808,2]
[384593049,1757466655179,-678.09,0.00017808,2]
[384593050,1757466655187,-1202.17,0.00017808,2]
[384593051,1757466655196,-480.0,0.00017808,2]
[384593052,1757466655206,-652.14,0.00017808,2]
[384593053,1757466655215,-593.39,0.00017808,2]
[384593054,1757466655225,-480.0,0.00017808,2]
[384593055,1757466655234,-532.05,0.00017808,2]
[384593056,1757466655243,-823.0,0.00018026,2]
[384593057,1757466655252,-480.0,0.00018082,2]
[384593058,1757466655262,-480.0,0.00018082,2]
[384593059,1757466655271,-4401.35,0.00018082,2]
[384593060,1757466655280,-537.92,0.00018082,2]
[384593061,1757466655289,-151.0,0.00018082,2]
[384593062,1757466655298,-480.0,0.00018082,2]
[384593063,1757466655308,-151.0,0.00018082,2]
[384593064,1757466655317,-151.0,0.00018082,2]
[384593065,1757466655326,-665.27,0.00018082,2]
[384593066,1757466655335,-517.31,0.00018082,2]
[384593067,1757466655344,-151.0,0.00018082,2]
[384593068,1757466655353,-151.0,0.00018082,2]
[384593069,1757466655362,-171.54656,0.00018082,2]
[384593070,1757466655371,-480.0,0.00018082,2]
[384593071,1757466655477,-678.09,0.00018082,2]
[384593072,1757466655488,-1202.17,0.00018082,2]
[384593073,1757466655498,-480.0,0.00018082,2]
[384593074,1757466655521,-652.14,0.00018082,2]
[384593075,1757466655532,-593.39,0.00018082,2]
[384593076,1757466655542,-480.0,0.00018082,2]
[384593077,1757466655552,-532.05,0.00018082,2]
[384593078,1757466655563,-151.0,0.000181,2]
[384593079,1757466655572,-480.0,0.00018356,2]
[384593080,1757466655582,-151.0,0.00018356,2]
[384593081,1757466655592,-151.0,0.00018356,2]
[384593082,1757466655602,-151.0,0.00018356,2]
[384593083,1757466655613,-480.0,0.00018356,2]
[384593084,1757466655622,-4401.35,0.00018356,2]
[384593085,1757466655632,-151.0,0.00018356,2]
[384593086,1757466655641,-233.596322,0.00018356,2]
[384593087,1757466655651,-151.0,0.00018356,2]
[384593088,1757466655663,-537.92,0.00018356,2]
[384593089,1757466655673,-480.0,0.00018356,2]
[384593090,1757466655684,-665.27,0.00018356,2]
[384593091,1757466655694,-517.31,0.00018356,2]
[384593092,1757466655705,-480.0,0.00018356,2]
[384593093,1757466655716,-678.09,0.00018356,2]
[384593094,1757466655726,-1202.17,0.00018356,2]
[384593095,1757466655736,-480.0,0.00018356,2]
[384593096,1757466655746,-652.14,0.00018356,2]
[384593097,1757466655755,-593.39,0.00018356,2]
[384593098,1757466655765,-480.0,0.00018356,2]
[384593099,1757466655776,-532.05,0.00018356,2]
[384593100,1757466655787,-100342.45121847,0.00018592,2]
[384593101,1757466655954,-480.0,0.00013698,2]
[384593102,1757466655964,-480.0,0.0001452,2]
[384593103,1757466655974,-480.0,0.00014794,2]
[384593104,1757466655984,-225.24758274,0.00015068,2]
[384593105,1757466655994,-368.92192826,0.00018592,2]
[384593106,1757466656006,-1493.22840448,0.00018592,2]
[384593107,1757466656088,-11079.57627556,0.00018592,2]
[384593108,1757466656116,-422.748628,0.00018592,2]
[384593109,1757466664048,691.0,0.00027,120]
[384593110,1757466680173,263.0,0.00027,120]
[384593127,1757466765395,1707.78,0.00027397,120]
[384593134,1757466836316,1446.77121138,0.000145,9]
[384593136,1757466846395,186.76130674,0.000145,9]
[384593157,1757467447095,606.52503405,0.00013189,2]
[384593158,1757467447457,303.26251702,0.0001319,2]
[384593177,1757467746283,-300.0,0.00013497,2]
[384593178,1757467746304,-2215.75048722,0.00013498,2]
[384593179,1757467746324,-2215.7504872,0.00013523,2]
[384593180,1757467746343,-2215.7504872,0.00013548,2]
[384593181,1757467746363,-2215.7504872,0.00013573,2]
[384593182,1757467746384,-1200.0,0.00013594,2]
[384593183,1757467746403,-300.0,0.00013595,2]
[384593184,1757467746422,-300.0,0.00013595,2]
[384593185,1757467746441,-300.0,0.00013595,2]
[384593186,1757467746460,-300.0,0.00013595,2]
[384593187,1757467746478,-500.0,0.00013597,2]
[384593188,1757467746497,-226.16063176,0.00013597,2]
[384593189,1757467746518,-262.32222623,0.00013597,2]
[384593190,1757467746542,-323.00376633,0.00013597,2]
[384593191,1757467746562,-282.1200672,0.00013597,2]
[384593192,1757467746584,-500.0,0.00013597,2]
[384593193,1757467746611,-500.0,0.00013597,2]
[384593194,1757467746644,-500.0,0.00013597,2]
[384593195,1757467746666,-251.84052938,0.00013597,2]
[384593196,1757467746687,-500.0,0.00013597,2]
[384593197,1757467746709,-500.0,0.00013597,2]
[384593198,1757467746730,-500.0,0.00013597,2]
[384593199,1757467746752,-500.0,0.00013597,2]
[384593200,1757467746775,-500.0,0.00013597,2]
[384593201,1757467746798,-500.0,0.00013597,2]
[384593202,1757467746821,-500.0,0.00013597,2]
[384593203,1757467746843,-500.0,0.00013597,2]
[384593204,1757467746866,-500.0,0.00013597,2]
[384593205,1757467746887,-639.71227145,0.00013597,2]
[384593206,1757467746907,-500.0,0.00013597,2]
[384593207,1757467746929,-500.0,0.00013597,2]
[384593208,1757467746950,-500.0,0.00013597,2]
[384593209,1757467746970,-500.0,0.00013597,2]
[384593210,1757467746991,-500.0,0.00013597,2]
[384593211,1757467747012,-187.01299918,0.00013597,2]
[384593212,1757467747033,-500.0,0.00013597,2]
[384593213,1757467747056,-500.0,0.00013597,2]
[384593214,1757467747077,-500.0,0.00013597,2]
[384593215,1757467747098,-500.0,0.00013597,2]
[384593216,1757467747120,-500.0,0.00013597,2]
[384593217,1757467747142,-616.33050729,0.00013597,2]
[384593218,1757467747164,-500.0,0.00013597,2]
[384593219,1757467747186,-500.0,0.00013597,2]
[384593220,1757467747212,-500.0,0.00013597,2]
[384593221,1757467747233,-500.0,0.00013597,2]
[384593222,1757467747256,-500.0,0.00013597,2]
[384593223,1757467747279,-500.0,0.00013597,2]
[384593224,1757467747301,-500.0,0.00013597,2]
[384593225,1757467747322,-500.0,0.00013597,2]
[384593226,1757467747344,-500.0,0.00013597,2]
[384593227,1757467747365,-500.0,0.00013597,2]
[384593228,1757467747387,-500.0,0.00013597,2]
[384593229,1757467747407,-500.0,0.00013597,2]
[384593230,1757467747429,-329.27088524,0.00013597,2]
[384593231,1757467747450,-500.0,0.00013597,2]
[384593232,1757467747471,-500.0,0.00013597,2]
[384593233,1757467747492,-500.0,0.00013597,2]
[384593234,1757467747513,-500.0,0.00013597,2]
[384593235,1757467747537,-500.0,0.00013597,2]
[384593236,1757467747685,-500.0,0.00013597,2]
[384593237,1757467747707,-540.09801596,0.00013597,2]
[384593238,1757467747730,-500.0,0.00013597,2]
[384593239,1757467747754,-500.0,0.00013597,2]